fUSD/lending_fUSD_20241121
["ID","MTS","AMOUNT","RATE_DAILY","PERIOD"]
[342892384,1732195840454,-500.0,0.00041095,18]
[342892385,1732195840464,-1498.98,0.00041095,18]
[342892386,1732195840474,-592.67,0.00041095,18]
[342892387,1732195840483,-536.96,0.00041095,18]
[342892388,1732195840493,-500.0,0.00041095,18]
[342892389,1732195840503,-500.0,0.00041095,18]
[342892390,1732195840513,-500.0,0.00041095,18]
[342892391,1732195840522,-1127.27,0.00041095,18]
[342892392,1732195840531,-3065.36,0.00041095,18]
[342892393,1732195840541,-622.97581364,0.00041095,18]
[342892394,1732195840551,-500.0,0.00041095,18]
[342892395,1732195840560,-500.0,0.00041095,18]
[342892396,1732195840570,-3137.78,0.00041095,18]
[342892397,1732195840585,-911.93,0.00041095,18]
[342892398,1732195840595,-605.86,0.00041095,18]
[342892399,1732195840605,-900.51,0.00041095,18]
[342892400,1732195840615,-508.56,0.00041095,18]
[342892401,1732195840624,-500.0,0.00041095,18]
[342892402,1732195840634,-500.0,0.00041095,18]
[342892403,1732195840644,-500.0,0.00041095,18]
[342892404,1732195840654,-1173.41,0.00041095,18]
[342892405,1732195840664,-2439.1,0.00041095,18]
[342892406,1732195840674,-590.67,0.00041095,18]
[342892407,1732195840683,-500.0,0.00041095,18]
[342892408,1732195840693,-500.0,0.00041095,18]
[342892409,1732195840704,-2564.56,0.00041095,18]
[342892410,1732195840714,-1778.49,0.00041095,18]
[342892411,1732195840723,-500.0,0.00041095,18]
[342892412,1732195840733,-500.0,0.00041095,18]
[342892413,1732195840743,-864.65,0.00041095,18]
[342892414,1732195840753,-1000.0,0.00041095,120]
[342892415,1732195840763,-500.0,0.00041095,18]
[342892416,1732195840774,-1000.0,0.00041095,120]
[342892417,1732195840786,-676.25,0.00041095,18]
[342892418,1732195840795,-3131.74,0.00041095,18]
[342892419,1732195840805,-356.25588693,0.00041095,120]
[342892420,1732195841404,-647.86097387,0.00041095,120]
[342892421,1732195841414,-660.47,0.00041095,18]
[342892422,1732195841424,-2364.37,0.00041095,18]
[342892423,1732195841433,-500.0,0.00041095,18]
[342892424,1732195841443,-500.0,0.00041095,18]
[342892425,1732195841453,-558.59,0.00041095,18]
[342892426,1732195841463,-500.0,0.00041095,18]
[342892427,1732195841472,-500.0,0.00041095,18]
[342892428,1732195841481,-671.65,0.00041095,18]
[342892429,1732195841491,-500.0,0.00041095,18]
[342892430,1732195841500,-886.6855224,0.00041095,18]
[342892431,1732195841512,-981.3244776,0.00041095,18]
[342892432,1732195841521,-500.0,0.00041095,18]
[342892433,1732195841531,-500.0,0.00041095,18]
[342892434,1732195841541,-500.0,0.00041095,18]
[342892435,1732195841551,-608.36,0.00041095,18]
[342892436,1732195841560,-500.0,0.00041095,18]
[342892437,1732195841570,-1354.62,0.00041095,18]
[342892438,1732195841583,-2664.51,0.00041095,18]
[342892439,1732195841593,-1433.5,0.00041095,18]
[342892440,1732195841603,-500.0,0.00041095,18]
[342892441,1732195841612,-500.0,0.00041095,18]
[342892442,1732195841621,-7777.2,0.00041095,18]
[342892443,1732195841630,-1650.84,0.00041095,18]
[342892444,1732195841640,-500.0,0.00041095,18]
[342892445,1732195841651,-500.0,0.00041095,18]
[342892446,1732195841661,-589.97244428,0.00041095,18]
[342892447,1732195841671,-1361.15,0.00041095,18]
[342892448,1732195841680,-500.0,0.00041095,18]
[342892449,1732195841690,-500.0,0.00041095,18]
[342892450,1732195841700,-997.88,0.00041095,18]
[342892451,1732195841710,-500.0,0.00041095,18]
[342892452,1732195841719,-871.34,0.00041095,18]
[342892453,1732195841729,-2988.37,0.00041095,18]
[342892454,1732195841738,-6059.29,0.00041095,18]
[342892455,1732195841747,-500.0,0.00041095,18]
[342892456,1732195841757,-500.0,0.00041095,18]
[342892457,1732195841766,-4892.38,0.00041095,18]
[342892458,1732195841776,-500.0,0.00041095,18]
[342892459,1732195841789,-535.04,0.00041095,18]
[342892460,1732195841799,-589.99,0.00041095,18]
[342892461,1732195841808,-500.0,0.00041095,18]
[342892462,1732195841820,-4304.98827537,0.00041095,18]
[342892463,1732195841835,-1399.2,0.00041095,18]
[342892464,1732195841851,-99.20172463,0.00041095,18]
[342892465,1732195841861,-2261.87,0.00041095,18]
[342892466,1732195841871,-500.0,0.00041095,18]
[342892467,1732195841880,-1000.0,0.00041095,18]
[342892468,1732195841889,-2762.12,0.00041095,18]
[342892469,1732195841898,-602.56,0.00041095,7]
[342892470,1732195841908,-500.0,0.00041095,18]
[342892471,1732195841917,-500.0,0.00041095,18]
[342892472,1732195841927,-500.0,0.00041095,18]
[342892473,1732195841936,-2347.8,0.00041095,18]
[342892474,1732195841946,-1158.3,0.00041095,18]
[342892475,1732195841956,-663.98,0.00041095,18]
[342892476,1732195841965,-1001.31,0.00041095,18]
[342892477,1732195841975,-187.64752062,0.00041095,18]
[342892478,1732195841985,-500.0,0.00041095,18]
[342892479,1732195841994,-1184.49,0.00041095,18]
[342892480,1732195842004,-500.0,0.00041095,18]
[342892481,1732195842013,-500.0,0.00041095,18]
[342892482,1732195842023,-500.0,0.00041095,18]
[342892483,1732195842032,-3828.48,0.00041095,18]
[342892484,1732195842042,-501.44,0.00041095,18]
[342892485,1732195842051,-2498.18,0.00041095,18]
[342892486,1732195842061,-500.0,0.00041095,18]
[342892487,1732195842070,-8887.51,0.00041095,18]
[342892488,1732195842081,-500.0,0.00041095,18]
[342892489,1732195842090,-1353.65,0.00041095,18]
[342892490,1732195842100,-500.0,0.00041095,18]
[342892491,1732195842109,-500.0,0.00041095,18]
[342892492,1732195842118,-811.12,0.00041095,18]
[342892493,1732195842127,-500.0,0.00041095,18]
[342892494,1732195842136,-2368.74168427,0.00041095,18]
[342892495,1732195842163,-274.030003,0.00041095,18]
[342892496,1732195842175,-612.48831273,0.00041095,18]
[342892497,1732195842184,-739.2,0.00041095,18]
[342892498,1732195842194,-500.0,0.00041095,18]
[342892499,1732195842203,-500.0,0.00041095,18]
[342892500,1732195842213,-523.12,0.00041095,18]
[342892501,1732195842223,-1875.63,0.00041095,18]
[342892502,1732195842232,-953.15,0.00041095,18]
[342892503,1732195842242,-500.0,0.00041095,18]
[342892504,1732195842251,-500.0,0.00041095,18]
[342892505,1732195842260,-138.53412745,0.00041095,18]
[342892506,1732195842276,-558.44587255,0.00041095,18]
[342892507,1732195842286,-90.88099754,0.00041095,18]
[342892514,1732195842848,-150.0,0.00038409,2]
[342892515,1732195842859,-409.11900246,0.00041095,18]
[342892517,1732195842869,-500.0,0.00041095,18]
[342892519,1732195842880,-1071.93,0.00041095,18]
[342892521,1732195842890,-500.0,0.00041095,120]
[342892523,1732195842899,-500.0,0.00041095,18]
[342892525,1732195842908,-1555.52,0.00041095,18]
[342892528,1732195842918,-926.45,0.00041095,18]
[342892530,1732195842927,-2061.2,0.00041095,18]
[342892534,1732195842936,-742.56,0.00041095,18]
[342892538,1732195842946,-919.93,0.00041095,18]
[342892539,1732195842955,-500.0,0.00041095,18]
[342892541,1732195842964,-574.68,0.00041095,18]
[342892543,1732195842974,-940.79,0.00041095,18]
[342892545,1732195842984,-500.0,0.00041095,18]
[342892546,1732195842993,-500.0,0.00041095,18]
[342892547,1732195843002,-837.08,0.00041095,18]
[342892548,1732195843011,-500.0,0.00041095,18]
[342892549,1732195843021,-500.0,0.00041095,18]
[342892550,1732195843030,-500.0,0.00041095,18]
[342892551,1732195843039,-1856.4,0.00041095,18]
[342892552,1732195843049,-1116.32,0.00041095,18]
[342892553,1732195843059,-500.0,0.00041095,18]
[342892554,1732195843068,-500.0,0.00041095,18]
[342892555,1732195843078,-603.8,0.00041095,18]
[342892556,1732195843091,-7495.51,0.00041095,18]
[342892557,1732195843101,-5791.28,0.00041095,18]
[342892558,1732195843110,-671.7,0.00041095,18]
[342892559,1732195843119,-500.0,0.00041095,18]
[342892560,1732195843128,-500.0,0.00041095,18]
[342892561,1732195843137,-500.0,0.00041095,18]
[342892562,1732195843147,-500.0,0.00041095,18]
[342892563,1732195843156,-500.0,0.00041095,18]
[342892564,1732195843166,-500.0,0.00041095,18]
[342892565,1732195843175,-500.0,0.00041095,18]
[342892566,1732195843185,-500.0,0.00041095,18]
[342892567,1732195843194,-500.0,0.00041095,18]
[342892568,1732195843203,-3316.25,0.00041095,18]
[342892569,1732195843212,-7526.48099754,0.00041095,18]
[342892579,1732195843789,-800.0,0.00039855,120]
[342892580,1732195843799,-2302.04661056,0.00041095,18]
[342892581,1732195843811,-605.31034939,0.00041095,18]
[342892582,1732195843824,-14781.70204251,0.00041095,18]
[342892583,1732195843838,-123.34269985,0.00041095,18]
[342892584,1732195843849,-376.65730015,0.00041095,18]
[342892585,1732195843859,-633.48,0.00041095,18]
[342892586,1732195843869,-500.0,0.00041095,18]
[342892587,1732195843878,-1477.19,0.00041095,18]
[342892588,1732195843887,-500.0,0.00041095,18]
[342892589,1732195843896,-759.04,0.00041095,18]
[342892590,1732195843905,-1886.02,0.00041095,18]
[342892591,1732195843915,-1798.92,0.00041095,18]
[342892592,1732195843924,-424.15445085,0.00041191,120]
[342892593,1732195843935,-375.84554915,0.00041191,120]
[342892594,1732195843944,-2071.42,0.00041246,2]
[342892595,1732195843953,-1643.7,0.00041315,120]
[342892596,1732195843962,-4275.7,0.00041315,120]
[342892597,1732195843971,-335.74000012,0.00041368,120]
[342892598,1732195843980,-1316.36154,0.00041369,15]
[342892599,1732195843989,-500.0,0.00041369,18]
[342892600,1732195843998,-500.0,0.00041369,18]
[342892601,1732195844007,-500.0,0.00041369,18]
[342892602,1732195844016,-984.67,0.00041369,18]
[342892603,1732195844024,-611.41,0.00041369,18]
[342892604,1732195844033,-1001.45,0.00041369,18]
[342892605,1732195844042,-815.72,0.00041369,18]
[342892606,1732195844051,-508.0,0.00041369,18]
[342892607,1732195844060,-500.0,0.00041369,18]
[342892608,1732195844069,-932.95,0.00041369,18]
[342892609,1732195844078,-813.66,0.00041369,18]
[342892610,1732195844091,-515.26278755,0.00041369,18]
[342892611,1732195844100,-500.0,0.00041369,18]
[342892612,1732195844109,-500.0,0.00041369,18]
[342892613,1732195844118,-543.83,0.00041369,18]
[342892614,1732195844127,-500.0,0.00041369,18]
[342892615,1732195844136,-500.0,0.00041369,18]
[342892616,1732195844145,-508.21,0.00041369,18]
[342892617,1732195844154,-500.0,0.00041369,18]
[342892618,1732195844163,-500.0,0.00041369,18]
[342892619,1732195844172,-500.0,0.00041369,18]
[342892620,1732195844181,-500.0,0.00041369,18]
[342892621,1732195844190,-500.0,0.00041369,18]
[342892622,1732195844199,-500.0,0.00041369,18]
[342892623,1732195844208,-944.1,0.00041369,18]
[342892624,1732195844217,-402.52544391,0.00041369,18]
[342892625,1732195844226,-500.0,0.00041369,18]
[342892626,1732195844235,-500.0,0.00041369,18]
[342892627,1732195844244,-500.0,0.00041369,18]
[342892628,1732195844253,-500.0,0.00041369,18]
[342892629,1732195844262,-500.0,0.00041369,18]
[342892630,1732195844271,-500.0,0.00041369,18]
[342892631,1732195844281,-500.0,0.00041369,18]
[342892632,1732195844290,-500.0,0.00041369,18]
[342892633,1732195844299,-600.84,0.00041369,18]
[342892634,1732195844309,-500.0,0.00041369,18]
[342892635,1732195844319,-500.0,0.00041369,18]
[342892636,1732195844329,-500.0,0.00041369,18]
[342892637,1732195844340,-500.0,0.00041369,18]
[342892638,1732195844349,-500.0,0.00041369,18]
[342892639,1732195844358,-847.14,0.00041369,18]
[342892640,1732195844368,-500.0,0.00041369,18]
[342892641,1732195844377,-540.4,0.00041369,18]
[342892642,1732195844386,-519.60055361,0.00041369,18]
[342892643,1732195844400,-606.00944639,0.00041369,18]
[342892644,1732195844409,-886.6,0.00041369,18]
[342892645,1732195844418,-500.0,0.00041369,18]
[342892646,1732195844427,-500.0,0.00041369,18]
[342892647,1732195844437,-500.0,0.00041369,18]
[342892648,1732195844446,-559.41,0.00041369,18]
[342892649,1732195844455,-500.0,0.00041369,18]
[342892650,1732195844465,-534.33,0.00041369,18]
[342892651,1732195844474,-500.0,0.00041369,18]
[342892652,1732195844483,-682.45,0.00041369,18]
[342892653,1732195844492,-644.75,0.00041369,18]
[342892654,1732195844501,-1664.59,0.00041369,18]
[342892655,1732195844512,-500.0,0.00041369,18]
[342892656,1732195844521,-584.63,0.00041369,18]
[342892657,1732195844530,-500.0,0.00041369,18]
[342892658,1732195844539,-294.57,0.00041369,18]
[342892659,1732195844548,-500.0,0.00041369,18]
[342892660,1732195844558,-847.86,0.00041369,18]
[342892661,1732195844567,-500.0,0.00041369,18]
[342892662,1732195844577,-706.24,0.00041369,18]
[342892663,1732195844589,-158.61776792,0.00041369,18]
[342892664,1732195844598,-500.0,0.00041369,18]
[342892665,1732195844607,-500.0,0.00041369,18]
[342892666,1732195844617,-603.33414444,0.00041369,18]
[342892667,1732195844626,-880.92,0.00041369,18]
[342892668,1732195844635,-612.43,0.00041369,18]
[342892669,1732195844645,-500.0,0.00041369,18]
[342892670,1732195844654,-500.0,0.00041369,18]
[342892671,1732195844663,-500.0,0.00041369,18]
[342892672,1732195844672,-500.0,0.00041369,18]
[342892673,1732195844682,-500.0,0.00041369,18]
[342892674,1732195844691,-928.5,0.00041369,18]
[342892675,1732195844700,-500.0,0.00041369,18]
[342892676,1732195844708,-500.0,0.00041369,18]
[342892677,1732195844718,-500.0,0.00041369,18]
[342892678,1732195844726,-500.0,0.00041369,18]
[342892679,1732195844735,-500.0,0.00041369,18]
[342892680,1732195844744,-500.0,0.00041369,18]
[342892681,1732195844753,-500.0,0.00041369,18]
[342892682,1732195844762,-1130.27,0.00041369,18]
[342892683,1732195844771,-622.3,0.00041369,18]
[342892684,1732195844781,-500.0,0.00041369,18]
[342892685,1732195844791,-661.19,0.00041369,18]
[342892686,1732195844800,-500.0,0.00041369,18]
[342892687,1732195844809,-541.61,0.00041369,18]
[342892688,1732195844820,-500.0,0.00041369,18]
[342892689,1732195844831,-624.78,0.00041369,18]
[342892690,1732195844840,-500.0,0.00041369,18]
[342892691,1732195844849,-628.57,0.00041369,18]
[342892692,1732195844861,-500.0,0.00041369,18]
[342892693,1732195844870,-709.48,0.00041369,18]
[342892694,1732195844879,-500.0,0.00041369,18]
[342892695,1732195844888,-500.0,0.00041369,18]
[342892696,1732195844897,-500.0,0.00041369,18]
[342892697,1732195844906,-500.0,0.00041369,18]
[342892698,1732195844916,-500.0,0.00041369,18]
[342892699,1732195844924,-500.0,0.00041369,18]
[342892700,1732195844933,-500.0,0.00041369,18]
[342892701,1732195844943,-779.13,0.00041369,18]
[342892702,1732195844952,-158.37623925,0.00041369,18]
[342892703,1732195844975,-341.62376075,0.00041369,18]
[342892704,1732195844984,-76.13175583,0.00041369,18]
[342892705,1732195844994,-423.86824417,0.00041369,18]
[342892706,1732195845004,-500.0,0.00041369,18]
[342892707,1732195845013,-500.0,0.00041369,18]
[342892708,1732195845022,-602.67,0.00041369,18]
[342892709,1732195845031,-500.0,0.00041369,18]
[342892710,1732195845040,-302.64955305,0.00041369,18]
[342892711,1732195845054,-302.54044695,0.00041369,18]
[342892712,1732195845063,-500.0,0.00041369,18]
[342892713,1732195845073,-500.0,0.00041369,18]
[342892714,1732195845086,-500.0,0.00041369,18]
[342892715,1732195845095,-500.0,0.00041369,18]
[342892716,1732195845105,-500.0,0.00041369,18]
[342892717,1732195845113,-500.0,0.00041369,18]
[342892718,1732195845122,-660.01705081,0.00041369,18]
[342892719,1732195845134,-1761.55294919,0.00041369,18]
[342892720,1732195845143,-906.34,0.00041369,18]
[342892721,1732195845286,-442.12421194,0.00041369,18]
[342892722,1732195845307,-19.48717776,0.00041369,18]
[342892723,1732195845316,-670.43,0.00041369,18]
[342892724,1732195845325,-661.73,0.00041369,18]
[342892725,1732195845340,-500.0,0.00041369,18]
[342892726,1732195845350,-483.83095584,0.00041369,18]
[342892727,1732195845362,-69.01376355,0.00041369,18]
[342892728,1732195845371,-549.96684838,0.00041369,18]
[342892729,1732195845380,-976.18,0.00041369,18]
[342892730,1732195845389,-452.84295307,0.00041369,18]
[342892731,1732195845400,-47.15704693,0.00041369,18]
[342892732,1732195845410,-500.0,0.00041369,18]
[342892733,1732195845420,-500.0,0.00041369,18]
[342892734,1732195845430,-602.69,0.00041369,18]
[342892735,1732195845440,-553.73,0.00041369,18]
[342892736,1732195845450,-608.44,0.00041369,18]
[342892737,1732195845459,-500.0,0.00041369,18]
[342892738,1732195845468,-320.27893739,0.00041369,18]
[342892739,1732195845481,-179.72106261,0.00041369,18]
[342892740,1732195845491,-500.0,0.00041369,18]
[342892741,1732195845501,-598.32,0.00041369,18]
[342892742,1732195845510,-412.43512891,0.00041369,18]
[342892743,1732195845520,-500.0,0.00041369,18]
[342892744,1732195845529,-787.0,0.00041369,18]
[342892745,1732195845538,-1022.643842,0.00041369,18]
[342892746,1732195845548,-170.542089,0.00041369,18]
[342892747,1732195845557,-726.46,0.00041369,18]
[342892748,1732195845566,-353.40509221,0.00041369,18]
[342892749,1732195845576,-500.0,0.00041369,18]
[342892750,1732195845588,-500.0,0.00041369,18]
[342892751,1732195845598,-500.0,0.00041369,18]
[342892752,1732195845607,-695.32,0.00041369,18]
[342892753,1732195845617,-500.0,0.00041369,18]
[342892754,1732195845627,-500.0,0.00041369,18]
[342892755,1732195845636,-1261.5,0.00041369,18]
[342892756,1732195845645,-500.0,0.00041369,18]
[342892757,1732195845655,-1407.82,0.00041369,18]
[342892758,1732195845664,-500.0,0.00041369,18]
[342892759,1732195845674,-1111.05,0.00041369,18]
[342892760,1732195845683,-500.0,0.00041369,18]
[342892761,1732195845693,-500.0,0.00041369,18]
[342892762,1732195845703,-500.0,0.00041369,18]
[342892763,1732195845713,-500.0,0.00041369,18]
[342892764,1732195845723,-1057.66,0.00041369,18]
[342892765,1732195845733,-674.56,0.00041369,18]
[342892766,1732195845742,-500.0,0.00041369,18]
[342892767,1732195845752,-669.11,0.00041369,18]
[342892769,1732195845762,-521.73,0.00041369,120]
[342892770,1732195845773,-512.91,0.00041369,18]
[342892772,1732195845783,-500.0,0.00041369,18]
[342892773,1732195845793,-500.0,0.00041369,18]
[342892774,1732195845803,-500.0,0.00041369,18]
[342892775,1732195845813,-1438.04,0.00041369,18]
[342892776,1732195845824,-1214.61,0.00041369,18]
[342892777,1732195845837,-500.0,0.00041369,18]
[342892778,1732195845847,-500.0,0.00041369,18]
[342892779,1732195845857,-1724.71,0.00041369,18]
[342892781,1732195845867,-500.0,0.00041369,18]
[342892782,1732195845877,-570.89,0.00041369,18]
[342892783,1732195845887,-500.0,0.00041369,18]
[342892784,1732195845897,-500.0,0.00041369,18]
[342892785,1732195845908,-800.81,0.00041369,18]
[342892786,1732195845918,-500.0,0.00041369,18]
[342892787,1732195845928,-500.0,0.00041369,18]
[342892788,1732195845938,-742.55,0.00041369,18]
[342892789,1732195845947,-500.0,0.00041369,18]
[342892790,1732195845957,-535.61,0.00041369,18]
[342892791,1732195845967,-500.0,0.00041369,18]
[342892792,1732195845977,-500.0,0.00041369,18]
[342892793,1732195845987,-658.65,0.00041369,18]
[342892794,1732195845998,-200.0,0.00041369,7]
[342892795,1732195846007,-241.63632125,0.00041369,18]
[342892796,1732195846017,-500.0,0.00041369,18]
[342892797,1732195846026,-500.0,0.00041369,18]
[342892798,1732195846036,-500.0,0.00041369,18]
[342892799,1732195846045,-522.35,0.00041369,18]
[342892800,1732195846055,-500.0,0.00041369,18]
[342892801,1732195846064,-500.0,0.00041369,18]
[342892802,1732195846073,-502.92,0.00041369,18]
[342892803,1732195846084,-500.0,0.00041369,18]
[342892804,1732195846094,-500.0,0.00041369,18]
[342892805,1732195846104,-500.0,0.00041369,18]
[342892806,1732195846114,-1864.33,0.00041369,18]
[342892807,1732195846123,-722.55,0.00041369,18]
[342892808,1732195846133,-500.0,0.00041369,18]
[342892809,1732195846143,-1563.68,0.00041369,18]
[342892810,1732195846153,-500.0,0.00041369,18]
[342892811,1732195846163,-500.0,0.00041369,18]
[342892812,1732195846173,-500.0,0.00041369,18]
[342892813,1732195846183,-587.12,0.00041369,18]
[342892814,1732195846193,-713.2,0.00041369,18]
[342892815,1732195846203,-500.0,0.00041369,18]
[342892816,1732195846213,-500.0,0.00041369,18]
[342892817,1732195846222,-500.0,0.00041369,18]
[342892818,1732195846232,-705.71,0.00041369,18]
[342892819,1732195846242,-454.007695,0.00041369,18]
[342892820,1732195846252,-500.0,0.00041369,18]
[342892821,1732195846262,-500.0,0.00041369,2]
[342892822,1732195846271,-1339.06,0.00041369,18]
[342892823,1732195846280,-500.0,0.00041369,18]
[342892824,1732195846290,-570.27,0.00041369,18]
[342892825,1732195846300,-2188.32,0.00041369,18]
[342892826,1732195846310,-500.0,0.00041369,18]
[342892827,1732195846319,-500.0,0.00041369,18]
[342892828,1732195846329,-500.0,0.00041369,18]
[342892829,1732195846341,-1211.16,0.00041369,18]
[342892830,1732195846351,-768.27,0.00041369,18]
[342892831,1732195846360,-500.0,0.00041369,18]
[342892832,1732195846370,-1079.7,0.00041369,18]
[342892833,1732195846379,-461.69318446,0.00041369,18]
[342892834,1732195846389,-807.94,0.00041369,18]
[342892835,1732195846398,-1155.96,0.00041369,7]
[342892836,1732195846408,-500.0,0.00041369,18]
[342892837,1732195846418,-500.0,0.00041369,18]
[342892838,1732195846428,-500.0,0.00041369,18]
[342892839,1732195846438,-500.0,0.00041369,18]
[342892841,1732195846447,-500.0,0.00041369,18]
[342892843,1732195846458,-910.69,0.00041369,18]
[342892845,1732195846467,-500.0,0.00041369,18]
[342892847,1732195846476,-1185.93,0.00041369,18]
[342892849,1732195846486,-1188.18,0.00041369,18]
[342892850,1732195846496,-580.84,0.00041369,18]
[342892851,1732195846505,-694.31,0.00041369,18]
[342892852,1732195846515,-500.0,0.00041369,18]
[342892853,1732195846524,-500.0,0.00041369,18]
[342892854,1732195846534,-896.92,0.00041369,18]
[342892855,1732195846543,-500.0,0.00041369,18]
[342892856,1732195846553,-500.0,0.00041369,18]
[342892857,1732195846562,-1360.08,0.00041369,18]
[342892858,1732195846572,-1156.44,0.00041369,18]
[342892859,1732195846584,-500.0,0.00041369,18]
[342892860,1732195846594,-500.0,0.00041369,18]
[342892861,1732195846604,-500.0,0.00041369,18]
[342892862,1732195846614,-500.0,0.00041369,18]
[342892863,1732195846624,-500.0,0.00041369,18]
[342892864,1732195846634,-1489.42,0.00041369,18]
[342892865,1732195846643,-500.0,0.00041369,18]
[342892866,1732195846653,-1496.67,0.00041369,18]
[342892867,1732195846663,-500.0,0.00041369,18]
[342892868,1732195846673,-1545.69,0.00041369,18]
[342892869,1732195846682,-679.69,0.00041369,18]
[342892870,1732195846692,-500.0,0.00041369,18]
[342892871,1732195846701,-779.39,0.00041369,18]
[342892872,1732195846711,-862.92,0.00041369,18]
[342892873,1732195846721,-1144.84,0.00041369,18]
[342892874,1732195846730,-500.0,0.00041369,18]
[342892875,1732195846739,-500.0,0.00041369,18]
[342892876,1732195846749,-551.46,0.00041369,18]
[342892877,1732195846759,-500.0,0.00041369,18]
[342892878,1732195846768,-500.0,0.00041369,18]
[342892879,1732195846781,-512.42,0.00041369,18]
[342892880,1732195846791,-663.59,0.00041369,18]
[342892881,1732195846800,-1043.41,0.00041369,18]
[342892882,1732195846810,-201.88,0.00041369,18]
[342892883,1732195846820,-352.17296597,0.00041369,18]
[342892884,1732195846831,-646.5,0.00041369,18]
[342892885,1732195846843,-1056.86,0.00041369,18]
[342892886,1732195846853,-500.0,0.00041369,18]
[342892887,1732195846863,-795.4,0.00041369,18]
[342892888,1732195846873,-500.0,0.00041369,18]
[342892889,1732195846883,-500.0,0.00041369,18]
[342892890,1732195846893,-500.0,0.00041369,18]
[342892891,1732195846902,-157.52190011,0.00041369,18]
[342892892,1732195846912,-500.0,0.00041369,18]
[342892893,1732195846922,-618.53,0.00041369,18]
[342892894,1732195846932,-574.95,0.00041369,18]
[342892895,1732195846942,-933.13,0.00041369,18]
[342892896,1732195846953,-500.0,0.00041369,18]
[342892897,1732195846962,-500.0,0.00041369,18]
[342892898,1732195846972,-500.0,0.00041369,18]
[342892899,1732195846981,-618.07,0.00041369,7]
[342892900,1732195846991,-592.63,0.00041369,18]
[342892901,1732195847000,-500.0,0.00041369,18]
[342892902,1732195847010,-1086.58,0.00041369,18]
[342892903,1732195847019,-310.69347434,0.00041369,18]
[342892904,1732195847029,-500.0,0.00041369,18]
[342892905,1732195847038,-941.58,0.00041369,18]
[342892906,1732195847048,-500.0,0.00041369,18]
[342892907,1732195847057,-500.0,0.00041369,18]
[342892908,1732195847066,-500.0,0.00041369,18]
[342892909,1732195847077,-560.09,0.00041369,18]
[342892910,1732195847091,-622.11,0.00041369,18]
[342892911,1732195847105,-718.89,0.00041369,18]
[342892912,1732195847115,-500.0,0.00041369,18]
[342892913,1732195847125,-500.0,0.00041369,18]
[342892914,1732195847136,-861.58724414,0.00041369,18]
[342892915,1732195847156,-405.35275586,0.00041369,18]
[342892916,1732195847166,-500.0,0.00041369,18]
[342892917,1732195847176,-500.0,0.00041369,18]
[342892918,1732195847185,-500.0,0.00041369,18]
[342892919,1732195847195,-500.0,0.00041369,18]
[342892920,1732195847205,-553.24,0.00041369,18]
[342892921,1732195847214,-500.0,0.00041369,18]
[342892922,1732195847223,-1146.72,0.00041369,18]
[342892923,1732195847232,-500.0,0.00041369,18]